bitfinex/quotes_BTCUSD_20250809
["timestamp","ask_amount","ask_price","bid_price","bid_amount"]
[1754699397209,0.17327425,116840.0,116830.0,0.50131684]
[1754699400409,0.17327425,116840.0,116830.0,0.18180834]
[1754699400606,0.22428767,116840.0,116820.0,0.29057437]
[1754699400836,0.3045689,116830.0,116820.0,4.73e-05]
[1754699401067,0.3065389,116830.0,116820.0,4.73e-05]
[1754699401269,0.3065389,116830.0,116820.0,0.3165458]
[1754699401609,0.3065389,116830.0,116820.0,0.3186458]
[1754699401829,0.36780377,116830.0,116820.0,0.3186458]
[1754699402042,0.36880377,116830.0,116820.0,0.48984936]
[1754699402242,0.36880377,116830.0,116820.0,0.3186458]
[1754699402535,0.36980377,116830.0,116820.0,0.3186458]
[1754699403539,0.3085389,116830.0,116820.0,0.3186458]
[1754699404153,0.3085389,116830.0,116820.0,0.3165458]
[1754699404354,0.3085389,116830.0,116820.0,4.73e-05]
[1754699406305,0.31727755,116830.0,116820.0,4.73e-05]
[1754699410058,0.40413966,116830.0,116820.0,4.73e-05]
[1754699410242,0.46905009,116830.0,116820.0,4.73e-05]
[1754699411042,0.46805009,116830.0,116820.0,4.73e-05]
[1754699411447,0.47005009,116830.0,116820.0,4.73e-05]
[1754699411709,0.46905009,116830.0,116820.0,4.73e-05]
[1754699412108,0.47105009,116830.0,116820.0,4.73e-05]
[1754699421111,0.49677009,116830.0,116820.0,4.73e-05]
[1754699421330,0.51421911,116830.0,116820.0,4.73e-05]
[1754699421577,0.53723911,116830.0,116820.0,4.73e-05]
[1754699429765,0.87723911,116830.0,116820.0,4.73e-05]
[1754699430695,0.87523911,116830.0,116820.0,4.73e-05]
[1754699431162,0.87323911,116830.0,116820.0,4.73e-05]
[1754699431368,0.87323911,116830.0,116820.0,0.0020473]
[1754699433738,0.71977911,116830.0,116820.0,0.0020473]
[1754699433959,0.85025911,116830.0,116820.0,0.0041473]
[1754699434394,0.48790009,116830.0,116820.0,0.0071173]
[1754699434600,0.84534911,116830.0,116820.0,0.0071173]
[1754699434782,0.34868144,116830.0,116820.0,0.0071173]
[1754699435045,0.47924144,116830.0,116820.0,0.0071173]
[1754699435257,0.34868144,116830.0,116820.0,0.0071173]
[1754699435466,0.47932144,116830.0,116820.0,0.0071173]
[1754699435886,0.41441101,116830.0,116820.0,0.0071173]
[1754699437409,0.41441101,116830.0,116820.0,0.0051173]
[1754699437626,0.41441101,116830.0,116820.0,0.0091173]
[1754699438889,0.41441101,116830.0,116820.0,0.0061473]
[1754699441105,0.41636101,116830.0,116820.0,0.0061473]
[1754699441321,0.48108714,116830.0,116820.0,0.0061473]
[1754699441971,0.48419714,116830.0,116820.0,0.0061473]
[1754699442906,0.50164616,116830.0,116820.0,0.0040473]
[1754699445690,0.49853616,116830.0,116820.0,0.0061473]
[1754699446096,0.50164616,116830.0,116820.0,0.0061473]
[1754699446321,0.50164616,116830.0,116820.0,0.0040473]
[1754699449891,0.49658616,116830.0,116820.0,0.0061473]
[1754699450828,0.49853616,116830.0,116820.0,0.0061473]
[1754699451230,0.50170616,116830.0,116820.0,0.0061473]
[1754699453125,0.50170616,116830.0,116820.0,0.0040473]
[1754699455787,0.49853616,116830.0,116820.0,0.0060073]
[1754699456580,0.50170616,116830.0,116820.0,0.0040473]
[1754699457006,0.50170616,116830.0,116820.0,0.0060073]
[1754699459394,0.50170616,116830.0,116820.0,0.0040473]
[1754699476397,0.37106616,116830.0,116820.0,0.0040473]
[1754699476606,0.50154616,116830.0,116820.0,0.0040473]
[1754699485497,0.48425714,116830.0,116820.0,0.0061673]
[1754699490422,0.35044714,116830.0,116820.0,0.0061673]
[1754699490633,0.48100714,116830.0,116820.0,0.0061673]
[1754699495818,0.48402714,116830.0,116820.0,0.0061673]
[1754699496949,0.38853101,116830.0,116820.0,0.81413226]
[1754699497177,0.08686211,116830.0,116820.0,0.82284399]
[1754699497390,0.025718,116840.0,116830.0,0.1711889]
[1754699497603,0.21778211,116840.0,116830.0,0.4902196]
[1754699497816,0.21778211,116840.0,116830.0,0.4931596]
[1754699498070,0.38895636,116840.0,116830.0,0.1762489]
[1754699498491,0.38895636,116840.0,116830.0,0.00506]
[1754699498906,0.38895636,116840.0,116830.0,0.00706]
[1754699499122,0.38895636,116840.0,116830.0,0.1782489]
[1754699499333,0.45516147,116840.0,116830.0,0.1782489]
[1754699499876,0.32424147,116840.0,116830.0,0.1782489]
[1754699500095,0.45520147,116840.0,116830.0,0.1782489]
[1754699500444,0.45520147,116840.0,116830.0,0.1792489]
[1754699501007,0.38899636,116840.0,116830.0,0.1792489]
[1754699502214,0.30213425,116840.0,116830.0,0.1792489]
[1754699502387,0.17117425,116840.0,116830.0,0.1792489]
[1754699502609,0.30209425,116840.0,116830.0,0.1792489]
[1754699503217,0.13092,116840.0,116830.0,0.4961596]
[1754699503621,0.30209425,116840.0,116830.0,0.4961596]
[1754699504306,0.30209425,116840.0,116830.0,0.1792489]
[1754699504706,0.17117425,116840.0,116830.0,0.1792489]
[1754699504914,0.30205425,116840.0,116830.0,0.1792489]
[1754699505113,0.3183877,116840.0,116830.0,0.1792489]
[1754699505342,0.30205425,116840.0,116830.0,0.1792489]
[1754699506393,0.20543358,116850.0,116830.0,0.4961596]
[1754699506623,0.30205425,116840.0,116830.0,0.1792489]
[1754699507453,0.30205425,116840.0,116830.0,0.1782489]
[1754699508684,0.30201425,116840.0,116830.0,0.1782489]
[1754699510135,0.30201425,116840.0,116830.0,0.1792489]
[1754699510346,0.30201425,116840.0,116830.0,0.00806]
[1754699510817,0.35917564,116840.0,116830.0,0.00806]
[1754699511091,0.35917564,116840.0,116830.0,0.00512]
[1754699511260,0.30201425,116840.0,116830.0,0.00512]
[1754699512870,0.30407425,116840.0,116830.0,0.00512]
[1754699513519,0.30725425,116840.0,116830.0,0.00512]
[1754699514790,0.30407425,116840.0,116830.0,0.00512]
[1754699516845,0.30725425,116840.0,116830.0,0.00512]
[1754699517185,0.34509923,116840.0,116830.0,0.003]
[1754699526638,0.34509923,116840.0,116830.0,0.00516]
[1754699527326,0.34509923,116840.0,116830.0,0.003]
[1754699530460,0.34191923,116840.0,116830.0,0.00516]
[1754699530804,0.34509923,116840.0,116830.0,0.00516]
[1754699531307,0.34509923,116840.0,116830.0,0.003]
[1754699542906,0.43196134,116840.0,116830.0,0.003]
[1754699552932,0.44941036,116840.0,116830.0,0.003]
[1754699553299,0.47513036,116840.0,116830.0,0.003]
[1754699553717,0.81513036,116840.0,116830.0,0.003]
[1754699554124,0.83980036,116840.0,116830.0,0.003]
[1754699555842,0.83980036,116840.0,116830.0,0.002]
[1754699556713,0.18863792,116830.0,116820.0,4.73e-05]
[1754699556928,0.36427428,116830.0,116820.0,4.73e-05]
[1754699557134,0.36730428,116830.0,116820.0,4.73e-05]
[1754699557773,0.39302528,116830.0,116820.0,4.73e-05]
[1754699558188,0.39302528,116830.0,116820.0,0.0010473]
[1754699559420,0.39302528,116830.0,116820.0,0.0020473]
[1754699575474,0.73302528,116830.0,116820.0,0.0020473]
[1754699575675,0.75704528,116830.0,116820.0,1e-08]
[1754699575877,0.76505782,116830.0,116820.0,1e-08]
[1754699576249,0.79005782,116830.0,116820.0,1e-08]
[1754699576644,0.79105782,116830.0,116820.0,1e-08]
[1754699577192,0.79005782,116830.0,116820.0,1e-08]
[1754699577368,0.79305782,116830.0,116820.0,1e-08]
[1754699579607,0.52866723,116810.0,116800.0,0.003085]
[1754699579832,0.81807767,116810.0,116800.0,0.003085]
[1754699580225,0.84692467,116810.0,116800.0,0.003085]
[1754699581020,0.84792467,116810.0,116800.0,0.003085]
[1754699583420,0.87301407,116810.0,116800.0,0.003085]
[1754699598559,0.86785407,116810.0,116800.0,0.005155]
[1754699598787,0.86785407,116810.0,116800.0,0.008175]
[1754699599411,0.86785407,116810.0,116800.0,0.005155]
[1754699599614,0.86989407,116810.0,116800.0,0.005155]
[1754699599822,0.87301407,116810.0,116800.0,0.005155]
[1754699600029,0.84792467,116810.0,116800.0,0.005155]
[1754699600239,0.84792467,116810.0,116800.0,0.003085]
[1754699604299,0.85594968,116810.0,116800.0,0.003085]
[1754699606536,0.85594968,116810.0,116800.0,0.005225]
[1754699608255,0.84792467,116810.0,116800.0,0.005225]
[1754699608463,0.87304746,116810.0,116800.0,0.005225]
[1754699610813,0.87304746,116810.0,116800.0,0.003085]
[1754699617036,0.87304746,116810.0,116800.0,1e-08]
[1754699627603,0.88107398,116810.0,116800.0,1e-08]
[1754699630815,0.88207398,116810.0,116800.0,1e-08]
[1754699631112,0.88407398,116810.0,116800.0,1e-08]
[1754699632117,0.90011867,116810.0,116800.0,1e-08]
[1754699632337,0.88407398,116810.0,116800.0,1e-08]
[1754699635139,1.08975398,116810.0,116800.0,1e-08]
[1754699637439,1.13078873,116810.0,116800.0,1e-08]
[1754699637851,1.10578873,116810.0,116800.0,1e-08]
[1754699638068,1.13078873,116810.0,116800.0,1e-08]
[1754699639141,1.11475398,116810.0,116800.0,1e-08]
[1754699639391,1.13078688,116810.0,116800.0,1e-08]
[1754699639611,1.10578688,116810.0,116800.0,1e-08]
[1754699640649,1.10577679,116810.0,116800.0,1e-08]
[1754699641071,1.111789,116810.0,116800.0,1e-08]
[1754699642070,1.1117462,116810.0,116800.0,1e-08]
[1754699642301,1.11174545,116810.0,116800.0,1e-08]
[1754699642849,1.10573399,116810.0,116800.0,1e-08]
[1754699643063,1.11174545,116810.0,116800.0,1e-08]
[1754699643291,1.11174528,116810.0,116800.0,1e-08]
[1754699643503,1.10658528,116810.0,116800.0,1e-08]
[1754699643732,1.10874528,116810.0,116800.0,0.00203001]
[1754699644294,1.10567399,116810.0,116800.0,0.00203001]
[1754699644906,1.10567098,116810.0,116800.0,0.00203001]
[1754699645849,1.10566952,116810.0,116800.0,0.00203001]
[1754699646473,1.11168054,116810.0,116800.0,0.00203001]
[1754699646885,1.11168029,116810.0,116800.0,0.00203001]
[1754699647353,1.1116803,116810.0,116800.0,0.00203001]
[1754699648245,1.10056927,116810.0,116800.0,0.00503001]
[1754699649370,1.10874053,116810.0,116800.0,0.00203001]
[1754699649846,1.11168053,116810.0,116800.0,0.00203001]
[1754699656434,1.11168053,116810.0,116800.0,1e-08]
[1754699657629,1.10566927,116810.0,116800.0,1e-08]
[1754699657868,1.11168462,116810.0,116800.0,1e-08]
[1754699660322,1.1301702,116810.0,116800.0,1e-08]
[1754699668335,1.11168462,116810.0,116800.0,1e-08]
[1754699669410,0.97606462,116810.0,116800.0,0.00215001]
[1754699669620,1.10654462,116810.0,116800.0,0.00537001]
[1754699669985,1.09178471,116810.0,116800.0,0.00215001]
[1754699670156,1.08576936,116810.0,116800.0,0.00215001]
[1754699670371,1.08894936,116810.0,116800.0,0.00215001]
[1754699672750,1.08894936,116810.0,116800.0,1e-08]
[1754699677138,1.09496512,116810.0,116800.0,1e-08]
[1754699678160,1.11100713,116810.0,116800.0,1e-08]
[1754699678589,1.11101343,116810.0,116800.0,1e-08]
[1754699679137,1.09497142,116810.0,116800.0,1e-08]
[1754699679764,1.08895566,116810.0,116800.0,1e-08]
[1754699680413,1.09497141,116810.0,116800.0,1e-08]
[1754699680574,1.08895566,116810.0,116800.0,1e-08]
[1754699681623,0.95847566,116810.0,116800.0,1e-08]
[1754699681830,1.08891566,116810.0,116800.0,1e-08]
[1754699687963,1.09493167,116810.0,116800.0,1e-08]
[1754699690610,1.09493312,116810.0,116800.0,1e-08]
[1754699691380,1.09493333,116810.0,116800.0,1e-08]
[1754699692201,1.09501333,116810.0,116800.0,1e-08]
[1754699692405,1.09501333,116810.0,116800.0,0.00204001]
[1754699692616,1.09183333,116810.0,116800.0,0.00204001]
[1754699694165,1.09494333,116810.0,116800.0,0.00204001]
[1754699696383,1.09494333,116810.0,116800.0,1e-08]
[1754699697570,1.11099191,116810.0,116800.0,1e-08]
[1754699699105,1.10296993,116810.0,116800.0,1e-08]
[1754699699306,1.11099417,116810.0,116800.0,1e-08]
[1754699699657,1.11099407,116810.0,116800.0,1e-08]
[1754699700079,1.17723159,116810.0,116800.0,1e-08]
[1754699700740,1.20223159,116810.0,116800.0,1e-08]
[1754699700943,1.22532822,116810.0,116800.0,1e-08]
[1754699701117,1.22332822,116810.0,116800.0,1e-08]
[1754699701425,1.22532822,116810.0,116800.0,1e-08]
[1754699701594,1.20223159,116810.0,116800.0,1e-08]
[1754699701801,1.20023159,116810.0,116800.0,1e-08]
[1754699702014,1.20323159,116810.0,116800.0,1e-08]
[1754699702386,1.20023159,116810.0,116800.0,1e-08]
[1754699702597,1.20523159,116810.0,116800.0,1e-08]
[1754699702793,1.20335159,116810.0,116800.0,1e-08]
[1754699703290,1.18260159,116810.0,116800.0,1e-08]
[1754699704044,1.02696159,116810.0,116800.0,1e-08]
[1754699704253,1.15776159,116810.0,116800.0,1e-08]
[1754699704836,1.15773915,116810.0,116800.0,1e-08]
[1754699708466,1.15773325,116810.0,116800.0,1e-08]
[1754699710335,0.51127686,116770.0,116760.0,0.0004]
[1754699710545,0.79711413,116770.0,116760.0,0.00244]
[1754699711051,0.82284713,116770.0,116760.0,0.00244]
[1754699711585,0.82284713,116770.0,116760.0,0.00248731]
[1754699712352,0.82284713,116770.0,116760.0,0.00569731]
[1754699712550,0.82284713,116770.0,116760.0,0.00669731]
[1754699713019,0.62387197,116770.0,116760.0,0.00669731]
[1754699713280,0.75455197,116770.0,116760.0,0.00669731]
[1754699720904,0.75455197,116770.0,116760.0,0.00448731]
[1754699721429,0.75759197,116770.0,116760.0,0.00448731]
[1754699721633,0.75963197,116770.0,116760.0,0.00448731]
[1754699721919,0.84642622,116770.0,116760.0,0.00448731]
[1754699722468,0.84642622,116770.0,116760.0,0.00244731]
[1754699722469,0.86387524,116770.0,116760.0,0.00244731]
[1754699722674,0.86387524,116770.0,116760.0,0.00442731]
[1754699727963,0.86387524,116770.0,116760.0,0.00244731]
[1754699736070,0.62387197,116770.0,116760.0,0.00442731]
[1754699736209,0.11259511,116770.0,116760.0,0.49483954]
[1754699736399,0.156213,116770.0,116760.0,0.49483954]
[1754699736813,0.13048,116770.0,116760.0,0.49483954]
[1754699737990,0.19700577,116780.0,116760.0,0.49483954]
[1754699738139,0.13048,116770.0,116760.0,0.49483954]
[1754699738752,0.13048,116770.0,116760.0,0.17692884]
[1754699739149,0.28386788,116780.0,116770.0,0.17127686]
[1754699739150,0.08686211,116780.0,116770.0,0.17127686]
[1754699739346,0.21734211,116780.0,116770.0,0.17546686]
[1754699740117,0.38860431,116780.0,116770.0,0.17546686]
[1754699741763,0.08686211,116780.0,116770.0,0.17546686]
[1754699741966,0.4112599,116790.0,116780.0,0.1712622]
[1754699742170,0.68890019,116790.0,116780.0,0.1732422]
[1754699742378,0.66317019,116790.0,116780.0,0.1732422]
[1754699743230,0.66317019,116790.0,116780.0,0.00198]
[1754699743636,0.66417019,116790.0,116780.0,0.00198]
[1754699744267,0.66721019,116790.0,116780.0,0.00198]
[1754699745691,0.66925019,116790.0,116780.0,0.00198]
[1754699746361,0.60895201,116790.0,116780.0,0.1732422]
[1754699749301,0.60795201,116790.0,116780.0,0.1732422]
[1754699749653,0.60795201,116790.0,116780.0,0.1742422]
[1754699751327,0.60795201,116790.0,116780.0,0.1752422]
[1754699751940,0.42310211,116790.0,116780.0,0.1752422]
[1754699752159,0.33624,116790.0,116780.0,0.60030584]
[1754699752357,0.20572,116790.0,116780.0,0.60030584]
[1754699752559,0.33628,116790.0,116780.0,0.60030584]
[1754699753015,0.33628,116790.0,116780.0,0.59930584]
[1754699753436,0.20572,116790.0,116780.0,0.59930584]
[1754699753648,0.33624,116790.0,116780.0,0.59930584]
[1754699754388,0.20572,116790.0,116780.0,0.59930584]
[1754699754591,0.3362,116790.0,116780.0,0.59830584]
[1754699754928,0.3372,116790.0,116780.0,0.59830584]
[1754699755111,0.3372,116790.0,116780.0,0.1754522]
[1754699755495,0.33724,116790.0,116780.0,0.1754522]
[1754699755905,0.20672,116790.0,116780.0,0.1754522]
[1754699756084,0.3372,116790.0,116780.0,0.1754522]
[1754699756291,0.3372,116790.0,116780.0,0.59830584]
[1754699757306,0.3372,116790.0,116780.0,0.59609584]
[1754699757512,0.3372,116790.0,116780.0,0.1732422]
[1754699760733,0.3372,116790.0,116780.0,0.49025442]
[1754699760985,0.13148,116790.0,116780.0,0.49025442]
[1754699764670,0.13148,116790.0,116780.0,0.1732422]
[1754699764816,0.13148,116790.0,116780.0,0.49025442]
[1754699767464,0.13148,116790.0,116780.0,0.49246442]
[1754699768132,0.13148,116790.0,116780.0,0.1754522]
[1754699768252,0.13148,116790.0,116780.0,0.80947664]
[1754699768456,0.13148,116790.0,116780.0,0.49246442]
[1754699769519,0.13148,116790.0,116780.0,0.51818842]
[1754699769716,0.13148,116790.0,116780.0,0.83520064]
[1754699770296,0.001,116790.0,116780.0,0.83520064]
[1754699770521,0.001,116790.0,116780.0,1.17520064]
[1754699771839,0.002,116790.0,116780.0,1.17520064]
[1754699771997,0.001,116790.0,116780.0,1.17520064]
[1754699772408,0.001,116790.0,116780.0,1.30572064]
[1754699772604,0.001,116790.0,116780.0,0.6716962]
[1754699772822,0.001,116790.0,116780.0,1.30572064]
[1754699773024,0.003,116790.0,116780.0,1.30572064]
[1754699773627,0.003,116790.0,116780.0,1.30351064]
[1754699777843,0.003,116790.0,116780.0,0.6694862]
[1754699778045,0.003,116790.0,116780.0,1.30351064]
[1754699781674,0.003,116790.0,116780.0,0.6694862]
[1754699781906,0.003,116790.0,116780.0,1.30351064]
[1754699785887,0.003,116790.0,116780.0,0.6694862]
[1754699786096,0.003,116790.0,116780.0,1.30351064]
[1754699786303,0.003,116790.0,116780.0,0.6694862]
[1754699786486,0.003,116790.0,116780.0,1.30351064]
[1754699788163,0.003,116790.0,116780.0,0.98649842]
[1754699789637,0.003,116790.0,116780.0,0.6694862]
[1754699789872,0.00805,116790.0,116780.0,0.5369862]
[1754699790340,0.00805,116790.0,116780.0,0.1969862]
[1754699790583,0.17929753,116790.0,116770.0,0.56763686]
[1754699790842,0.17929753,116790.0,116770.0,0.46280186]
[1754699790843,0.00299,116780.0,116770.0,0.46280186]
[1754699791079,0.00505,116780.0,116770.0,0.46280186]
[1754699791288,0.1763122,116780.0,116770.0,0.19700186]
[1754699791742,0.1763122,116780.0,116760.0,0.31931111]
[1754699791950,0.00299,116770.0,116760.0,0.21443911]
[1754699792156,0.00505,116770.0,116760.0,0.20603141]
[1754699794880,0.00505,116770.0,116760.0,0.20801141]
[1754699800494,0.00505,116770.0,116760.0,0.20603141]
[1754699809034,0.00505,116770.0,116760.0,0.20801141]
[1754699812145,0.00505,116770.0,116760.0,0.18228341]
[1754699812349,0.00505,116770.0,116760.0,0.20603141]
[1754699812706,0.00505,116770.0,116760.0,0.18030341]
[1754699818559,0.17632686,116770.0,116760.0,0.17173884]
[1754699818760,0.21108578,116770.0,116760.0,0.17173884]
[1754699819824,0.34268578,116770.0,116760.0,0.17173884]
[1754699820234,0.30792686,116770.0,116760.0,0.17173884]
[1754699820430,0.13765,116770.0,116760.0,0.17173884]
[1754699821709,0.30892686,116770.0,116760.0,0.17173884]
[1754699821922,0.30892686,116770.0,116760.0,0.00044731]
[1754699822339,0.39578897,116770.0,116760.0,0.00044731]
[1754699822558,0.4524941,116770.0,116760.0,0.00044731]
[1754699829404,0.4514941,116770.0,116760.0,0.00044731]
[1754699829554,0.4504941,116770.0,116760.0,0.00044731]
[1754699829759,0.4514941,116770.0,116760.0,0.00044731]
[1754699830036,0.4534941,116770.0,116760.0,0.00044731]
[1754699839963,0.81094312,116770.0,116760.0,0.00044731]
[1754699840371,0.83667912,116770.0,116760.0,0.00044731]
[1754699840572,0.83567912,116770.0,116760.0,0.00044731]
[1754699840798,0.83367912,116770.0,116760.0,0.00044731]
[1754699841965,0.83367912,116770.0,116760.0,0.00244731]
[1754699842165,0.83367912,116770.0,116760.0,0.00544731]
[1754699875259,0.84170225,116770.0,116760.0,0.00544731]
[1754699877653,0.84170304,116770.0,116760.0,0.00544731]
[1754699881874,0.83367912,116770.0,116760.0,0.00544731]
[1754699882084,0.84170261,116770.0,116760.0,0.00544731]
[1754699884440,0.84170261,116770.0,116760.0,0.00544731]
[1754699885711,0.83367912,116770.0,116760.0,0.00544731]
[1754699885920,0.84170232,116770.0,116760.0,0.00544731]
[1754699888210,0.83367912,116770.0,116760.0,0.00544731]
[1754699888426,0.84170257,116770.0,116760.0,0.00544731]
[1754699902900,0.84170257,116770.0,116760.0,0.00744731]
[1754699903201,0.84170464,116770.0,116760.0,0.00744731]
[1754699903507,0.84170464,116770.0,116760.0,0.00544731]
[1754699912640,0.71110464,116770.0,116760.0,0.00544731]
[1754699912872,0.84154464,116770.0,116760.0,0.00544731]
[1754699920820,0.84154498,116770.0,116760.0,0.00544731]
[1754699932180,0.84154492,116770.0,116760.0,0.00544731]
[1754699932805,0.84150492,116770.0,116760.0,0.00544731]
[1754699933929,0.70605492,116770.0,116760.0,0.00544731]
[1754699934158,0.83645492,116770.0,116760.0,0.00740731]
[1754699936518,0.82842912,116770.0,116760.0,0.00740731]
[1754699937872,0.64132399,116770.0,116760.0,0.00740731]
[1754699938091,0.77172399,116770.0,116760.0,0.00961731]
[1754699939532,0.77172399,116770.0,116760.0,0.00740731]
[1754699940181,0.77172399,116770.0,116760.0,0.00961731]
[1754699940182,0.41427497,116770.0,116760.0,0.00961731]
[1754699942319,0.28387497,116770.0,116760.0,0.00961731]
[1754699942522,0.4803647,116770.0,116760.0,0.00961731]
[1754699942721,0.4803247,116770.0,116760.0,0.00961731]
[1754699944060,0.41423497,116770.0,116760.0,0.00961731]
[1754699946089,0.41423497,116770.0,116760.0,0.00740731]
[1754699946915,0.28387497,116770.0,116760.0,0.17869884]
[1754699947128,0.37702234,116780.0,116770.0,0.17127686]
[1754699947386,0.61997445,116780.0,116770.0,0.17323686]
[1754699947607,0.61997445,116780.0,116770.0,0.00196]
[1754699947809,0.61997445,116780.0,116770.0,0.17323686]
[1754699948010,0.64755416,116780.0,116770.0,0.00196]
[1754699948476,0.64755416,116780.0,116770.0,0.00396]
[1754699949947,0.65274416,116780.0,116770.0,0.00396]
[1754699951664,0.65274416,116780.0,116770.0,0.002]
[1754699953831,0.62516445,116780.0,116770.0,0.002]
[1754699956730,0.41940445,116780.0,116770.0,0.002]
[1754699984664,0.41940445,116780.0,116770.0,0.17327686]
[1754700001063,0.28904445,116780.0,116770.0,0.17327686]
[1754700001273,0.41932445,116780.0,116770.0,0.17327686]
[1754700001702,0.5061187,116780.0,116770.0,0.17327686]
[1754700017621,0.5061187,116780.0,116770.0,0.002]
[1754700044892,0.52356772,116780.0,116770.0,0.002]
[1754700053673,0.52339158,116780.0,116770.0,0.002]
[1754700084527,0.30112733,116780.0,116770.0,0.00415]
[1754700084736,0.41379831,116780.0,116770.0,0.00415]
[1754700091190,0.41379831,116780.0,116770.0,0.17763686]
[1754700091590,0.41379831,116780.0,116770.0,0.00636]
[1754700091911,0.41379831,116780.0,116770.0,0.00536]
[1754700092285,0.41379831,116780.0,116770.0,0.00636]
[1754700093085,0.41379831,116780.0,116770.0,0.00415]
[1754700094198,0.41379831,116780.0,116770.0,0.00715]
[1754700098138,0.41681831,116780.0,116770.0,0.00715]
[1754700100410,0.41878831,116780.0,116770.0,0.00715]
[1754700102712,0.41878831,116780.0,116770.0,0.005]
[1754700136945,0.41866831,116780.0,116770.0,0.005]
[1754700153190,0.50546256,116780.0,116770.0,0.005]
[1754700155559,0.41866831,116780.0,116770.0,0.005]
[1754700197875,0.41866831,116780.0,116770.0,0.17627686]
[1754700198085,0.41866831,116780.0,116770.0,0.005]
[1754700205646,0.41866831,116780.0,116770.0,0.00698]
[1754700205850,0.41866831,116780.0,116770.0,0.005]
[1754700206051,0.41866831,116780.0,116770.0,0.00698]
[1754700207250,0.41866831,116780.0,116770.0,0.005]
[1754700208634,0.44187443,116780.0,116770.0,0.005]
[1754700212579,0.41866831,116780.0,116770.0,0.005]
[1754700213069,0.28866831,116780.0,116770.0,0.005]
[1754700213295,0.41854831,116780.0,116770.0,0.005]
[1754700243487,0.28866831,116780.0,116770.0,0.005]
[1754700243721,0.41846831,116780.0,116770.0,0.00712]
[1754700243942,0.50526256,116780.0,116770.0,0.00712]
[1754700246934,0.50526256,116780.0,116770.0,0.005]
[1754700278769,0.50026256,116780.0,116770.0,0.005]
[1754700279554,0.41346831,116780.0,116770.0,0.005]
[1754700300584,0.40847831,116780.0,116770.0,0.005]
[1754700302499,0.41366831,116780.0,116770.0,0.005]
[1754700303675,0.43111733,116780.0,116770.0,0.005]
[1754700362498,0.42592733,116780.0,116770.0,0.005]
[1754700362640,0.48734948,116780.0,116770.0,0.005]
[1754700364555,0.49231948,116780.0,116770.0,0.005]
[1754700406226,0.83231948,116780.0,116770.0,0.005]
[1754700406428,0.84034984,116780.0,116770.0,0.005]
[1754700407028,0.84034984,116780.0,116770.0,0.003]
[1754700407259,0.18872588,116770.0,116760.0,0.00044731]
[1754700407584,0.49397224,116770.0,116760.0,0.00044731]
[1754700407774,0.49706224,116770.0,116760.0,0.00044731]
[1754700408074,0.50205224,116770.0,116760.0,0.00044731]
[1754700408745,0.50205224,116770.0,116760.0,0.00344731]
[1754700409380,0.50205224,116770.0,116760.0,0.00544731]
[1754700413016,0.84205224,116770.0,116760.0,0.00544731]
[1754700422559,0.84205224,116770.0,116760.0,0.00344731]
[1754700423206,0.84205224,116770.0,116760.0,0.00044731]
[1754700433857,0.85007141,116770.0,116760.0,0.00044731]
[1754700435552,0.84205224,116770.0,116760.0,0.00044731]
[1754700436378,0.85007456,116770.0,116760.0,0.00044731]
[1754700437430,0.72047456,116770.0,116760.0,0.00258731]
[1754700437627,0.83717224,116770.0,116760.0,0.00258731]
[1754700439239,0.84013224,116770.0,116760.0,0.00258731]
[1754700440035,0.84216224,116770.0,116760.0,0.00258731]
[1754700441252,0.85018861,116770.0,116760.0,0.00258731]
[1754700442528,0.85018861,116770.0,116760.0,0.00044731]
[1754700445070,0.85019026,116770.0,116760.0,0.00044731]
[1754700446762,0.85019079,116770.0,116760.0,0.00044731]
[1754700448010,0.8501909,116770.0,116760.0,0.00044731]
[1754700451200,0.84216224,116770.0,116760.0,0.00044731]
[1754700465006,0.85019117,116770.0,116760.0,0.00044731]
[1754700465206,0.84216224,116770.0,116760.0,0.00044731]
[1754700471816,0.85019054,116770.0,116760.0,0.00044731]
[1754700472018,0.84216224,116770.0,116760.0,0.00044731]
[1754700472272,0.85019049,116770.0,116760.0,0.00044731]
[1754700474443,0.84216224,116770.0,116760.0,0.00044731]
[1754700475026,0.85019072,116770.0,116760.0,0.00044731]
[1754700475235,0.84216224,116770.0,116760.0,0.00044731]
[1754700475712,0.85019088,116770.0,116760.0,0.00044731]
[1754700490002,0.85019174,116770.0,116760.0,0.00044731]
[1754700513602,0.85018785,116770.0,116760.0,0.00044731]
[1754700526969,0.84216224,116770.0,116760.0,0.00044731]
[1754700527182,0.85018507,116770.0,116760.0,0.00044731]
[1754700535801,0.84216224,116770.0,116760.0,0.00044731]
[1754700535941,0.85018674,116770.0,116760.0,0.00044731]
[1754700538318,0.62860249,116770.0,116760.0,0.00257731]
[1754700538531,0.75133799,116770.0,116760.0,0.00478731]
[1754700539850,0.62057799,116770.0,116760.0,0.00478731]
[1754700539970,0.75177799,116770.0,116760.0,0.00478731]
[1754700540971,0.75177799,116770.0,116760.0,0.00257731]
[1754700541180,0.83857224,116770.0,116760.0,0.00257731]
[1754700541397,0.83857224,116770.0,116760.0,0.00478731]
[1754700541893,0.83857224,116770.0,116760.0,0.00257731]
[1754700544076,0.75185799,116770.0,116760.0,0.00478731]
[1754700544281,0.62057799,116770.0,116760.0,0.00478731]
[1754700544493,0.39440897,116770.0,116760.0,0.17607884]
[1754700544911,0.26312897,116770.0,116760.0,0.17607884]
[1754700545114,0.39436897,116770.0,116760.0,0.00478731]
[1754700545765,0.39436897,116770.0,116760.0,0.00578731]
[1754700546978,0.39436897,116770.0,116760.0,0.00778731]
[1754700548674,0.39436897,116770.0,116760.0,0.00557731]
[1754700552358,0.47129349,116770.0,116760.0,0.00557731]
[1754700552552,0.47432349,116770.0,116760.0,0.00557731]
[1754700554268,0.47647349,116770.0,116760.0,0.00557731]
[1754700561902,0.17626686,116770.0,116760.0,0.00557731]
[1754700562136,0.20576,116780.0,116770.0,0.17127686]
[1754700562367,0.59484431,116780.0,116770.0,0.17335686]
[1754700562591,0.59484431,116780.0,116770.0,0.00208]
[1754700563016,0.59983431,116780.0,116770.0,0.00208]
[1754700563381,0.46887431,116780.0,116770.0,0.00208]
[1754700563577,0.59983431,116780.0,116770.0,0.00208]
[1754700564024,0.46887431,116780.0,116770.0,0.00408]
[1754700564238,0.59983431,116780.0,116770.0,0.00408]
[1754700565174,0.46887431,116780.0,116770.0,0.00508]
[1754700565732,0.59979431,116780.0,116770.0,0.00508]
[1754700567941,0.59979431,116780.0,116770.0,0.003]
[1754700568145,0.68117605,116780.0,116770.0,0.003]
[1754700568896,0.70690705,116780.0,116770.0,0.003]
[1754700569081,1.04690705,116780.0,116770.0,0.003]
[1754700570320,0.84114705,116780.0,116770.0,0.003]
[1754700573422,0.85859607,116780.0,116770.0,0.003]
[1754700635336,0.17127686,116770.0,116760.0,0.00044731]